[Event "LTU-ch Men 2019"]
[Site "Vilnius"]
[Date "2019.03.17"]
[Round "4.3"]
[White "Bagvilas, Lukas"]
[Black "Brazdzionis, Andrius"]
[Result "0-1"]
[ECO "C11"]
[WhiteElo "1973"]
[BlackElo "2311"]
[Annotator "NA"]
[PlyCount "94"]
[EventDate "2019.??.??"]
[EventCountry "LTU"]
[SourceTitle "playchess.com"]
[Source "ChessBase"]
[SourceQuality "1"]
[TimeControl "5400+30"]

{[%evp 8,94,0,0,11,-33,-25,-29,-34,-39,-26,-26,0,-2,-23,-69,-75,-138,-122,-120,-28,-118,-83,-125,21,0,32767,0,0,0,5,-60,-31,-58,-43,-32,1,29,32767,32767,141,0,0,0,32767,32767,133,133,152,32767,32767,32767,149,32767,195,123,330,231,237,227,32767,19,10,32767,32767,32767,32767,54,32767,32767,32767,0,0,32767,0,-12,-11,32767,32767,32767,32767,32767,32767,32767,32767,-494,0,32767,-29999]} 1. e4 {[%emt 0:00:00]} Nf6 {[%emt 0:00:22]} 2. Nc3 {[%emt 0:00:00]} d5 {[%emt 0:00:14]} 3. e5 {[%emt 0:00:00]} Nfd7 {[%emt 0:00:05]} 4. d4 {[%emt 0:01:45]} e6 {[%emt 0:00:05]} 5. f4 {[%emt 0:00:08]} c5 {[%emt 0:00:04]} 6. dxc5 {[%emt 0:00:02]} Nc6 {[%emt 0:00:50]} 7. a3 {[%emt 0:00:37]} Bxc5 {[%emt 0:02:06]} 8. Qg4 {[%emt 0:00:04]} O-O {[%emt 0:00:48] C11: French: Classical System: 4 e5 and 4 Bg5 dxe4} 9. Nf3 {[%emt 0:00:05]} (9. Bd3 Qe7 10. Bd2 f6 11. Qh4 h6 12. exf6 Nxf6 13. O-O-O e5 14. fxe5 Nxe5 15. Nf3 Nxd3+ 16. cxd3 {1-0 (44) Short,N (2680)-Morozevich,A (2700) Reggio Emilia 2010 CBM 140 [Ftacnik,L]}) 9... f5 {[%emt 0:14:53]} 10. Qh3 {[%emt 0:00:05]} Be7 {[%emt 0:02:10]} 11. Bd3 {[%emt 0:00:14]} ({Better is} 11. Be3 $11) 11... Nc5 {[%emt 0:00:06]} 12. g4 $146 {[%emt 0:04:35]} ({Predecessor:} 12. O-O $15 Nxd3 13. cxd3 Qb6+ 14. Kh1 a5 15. Rb1 Bd7 16. Bd2 {½-½ (48) Van Kemenade,R (2043)-Valgmae,T (2218) Caleta 2013}) 12... d4 {[%emt 0:04:30]} 13. Ne2 {[%emt 0:00:06]} b6 {[%emt 0:02:04]} (13... Qa5+ $17 14. Kf2 Nxd3+ 15. cxd3 fxg4 16. Qxg4 Qa4) 14. Rg1 {[%emt 0:01:46]} (14. Bb5 $11 Bb7 15. Bxc6 Bxc6 16. Nexd4 Bxf3 17. Nxf3) 14... Nxd3+ {[%emt 0:18:21]} 15. cxd3 {[%emt 0:00:06]} Kh8 {[%emt 0:01:38]} (15... Qd5 $17) 16. gxf5 {[%emt 0:00:41]} exf5 {[%emt 0:04:03]} 17. Ng5 {[%emt 0:10:42]} Bxg5 {[%emt 0:02:26]} 18. Rxg5 {[%emt 0:00:26]} Be6 {[%emt 0:01:04]} 19. Rh5 {[%emt 0:01:36]} (19. b4 $11) 19... Bg8 {[%emt 0:02:08]} 20. Rxf5 {[%emt 0:07:25]} Qd5 {[%emt 0:00:45]} 21. Rg5 {[%emt 0:02:18]} Na5 {[%emt 0:08:24]} 22. e6 $1 {[%emt 0:12:24]} Qh1+ {[%emt 0:14:30]} 23. Rg1 {[%emt 0:00:41]} Qd5 {[%emt 0:01:12]} 24. Rg5 {[%emt 0:00:07]} Qh1+ {[%emt 0:01:25]} 25. Rg1 {[%emt 0:00:05]} Qd5 {[%emt 0:00:43]} {White must play} 26. Qg4 $16 {[%emt 0:02:46]} g6 {[%emt 0:01:15] [#]} 27. f5 $1 {[%emt 0:04:02]} Rxf5 {[%emt 0:00:58]} 28. Qxd4+ {[%emt 0:00:06]} Qxd4 {[%emt 0:00:04]} 29. Nxd4 {[%emt 0:00:04]} Re5+ {[%emt 0:00:13]} (29... Bxe6 30. b4 (30. Nxe6 Nb3 $17) 30... Re5+ 31. Ne2) 30. Kd1 {[%emt 0:00:59]} Kg7 {[%emt 0:04:12]} 31. Bd2 {[%emt 0:01:00]} (31. b4 $18 Nb7 32. Bb2) 31... Re8 $2 {[%emt 0:03:40]} (31... Rc8 $16 32. h4 Nb7) 32. Bc3 {[%emt 0:00:26]} Kh6 {[%emt 0:00:25]} 33. b4 {[%emt 0:08:16]} Nb7 {[%emt 0:00:21]} 34. Nf3 $2 {[%emt 0:00:32]} ({White should play} 34. Rc1 $18) 34... Rd5 {[%emt 0:02:27]} 35. Ne5 {[%emt 0:00:38]} Bxe6 {[%emt 0:00:37]} 36. Kc2 {[%emt 0:05:18]} Nd6 {[%emt 0:01:23]} 37. Rae1 {[%emt 0:00:27]} Rc8 {[%emt 0:02:22]} 38. Nxg6 {[%emt 0:13:58]} Nb5 {[%emt 0:00:44]} 39. Nf4 {[%emt 0:02:02]} Rxc3+ {[%emt 0:00:55] Double Attack} 40. Kb2 {[%emt 0:00:23]} Rd6 $1 {[%emt 0:01:02]} 41. Nxe6 {[%emt 0:03:26]} Rdxd3 {[%emt 0:00:45]} 42. Ng7 {[%emt 0:03:56]} Rb3+ {[%emt 0:00:16]} 43. Kc1 {[%emt 0:00:55]} Rbc3+ {[%emt 0:00:02]} 44. Kb2 {[%emt 0:00:06]} Rb3+ {[%emt 0:00:02]} 45. Kc1 {[%emt 0:00:05]} Rdc3+ {[%emt 0:00:34]} 46. Kd1 {[%emt 0:02:24]} Rd3+ $11 {[%emt 0:00:02]} ({Black should try} 46... Nd4 $19 47. Re5 Rb1+ 48. Kd2 Rc2+ 49. Kd3 Rxg1 50. Nf5+ Nxf5 51. Kxc2 Kg6) 47. Kc2 {[%emt 0:00:08]} Nxa3+ {[%emt 0:00:32]} 0-1

[Event "LTU-ch Men 2019"]
[Site "Vilnius"]
[Date "2019.03.17"]
[Round "4.4"]
[White "Chocenka, Dmitrijus"]
[Black "Stremavicius, Pijus"]
[Result "1-0"]
[ECO "B07"]
[WhiteElo "2287"]
[BlackElo "2079"]
[Annotator "ChessBase"]
[PlyCount "61"]
[EventDate "2019.??.??"]
[EventCountry "LTU"]
[SourceTitle "playchess.com"]
[Source "ChessBase"]
[SourceQuality "1"]
[TimeControl "5400+30"]

1. e4 {[%emt 0:00:00]} d6 {[%emt 0:00:00]} 2. d4 {[%emt 0:00:00]} Nf6 {[%emt 0:00:00]} 3. Nc3 {[%emt 0:00:00]} g6 {[%emt 0:00:00]} 4. Be3 {[%emt 0:00:00]} c6 {[%emt 0:00:00]} 5. h3 {[%emt 0:00:00]} Bg7 {[%emt 0:02:42]} 6. Nf3 {[%emt 0:00:42]} O-O {[%emt 0:00:32]} 7. Bd3 {[%emt 0:02:28]} b5 {[%emt 0:02:06]} 8. O-O {[%emt 0:01:46]} Bb7 {[%emt 0:04:47]} 9. a3 {[%emt 0:05:15]} a6 {[%emt 0:03:47]} 10. Re1 {[%emt 0:01:05]} Nfd7 {[%emt 0:02:52]} 11. Qd2 {[%emt 0:04:02]} c5 {[%emt 0:01:23]} 12. Bh6 {[%emt 0:01:01]} cxd4 {[%emt 0:02:53]} 13. Bxg7 {[%emt 0:00:32]} Kxg7 {[%emt 0:00:07]} 14. Nxd4 {[%emt 0:00:05]} Nc6 {[%emt 0:00:19]} 15. Nxc6 {[%emt 0:09:27]} Bxc6 {[%emt 0:00:05]} 16. Nd5 {[%emt 0:00:52]} Bxd5 {[%emt 0:15:25]} 17. exd5 {[%emt 0:01:04]} Nb6 {[%emt 0:00:05]} 18. Qc3+ {[%emt 0:03:50]} f6 {[%emt 0:02:42]} 19. Qd4 {[%emt 0:00:14]} Re8 {[%emt 0:07:11]} 20. h4 {[%emt 0:10:10]} Rc8 {[%emt 0:05:48]} 21. b4 {[%emt 0:09:24]} Qc7 {[%emt 0:05:48]} 22. h5 {[%emt 0:01:03]} Qb7 {[%emt 0:00:06]} 23. hxg6 {[%emt 0:02:34]} h6 {[%emt 0:01:52]} 24. Rad1 {[%emt 0:02:57]} Nxd5 {[%emt 0:06:20]} 25. Bf5 {[%emt 0:02:08]} Nc3 {[%emt 0:02:30]} 26. Bxc8 {[%emt 0:01:14]} Qxc8 {[%emt 0:00:02]} 27. Rd3 {[%emt 0:00:27]} Na4 {[%emt 0:00:02]} 28. Qd5 {[%emt 0:00:21]} e6 {[%emt 0:00:26]} 29. Qxd6 {[%emt 0:00:16]} Kxg6 {[%emt 0:00:05]} 30. Rg3+ {[%emt 0:01:19]} Kf7 {[%emt 0:00:08]} 31. Qd3 {[%emt 0:00:21]} 1-0

[Event "LTU-ch Men 2019"]
[Site "Vilnius"]
[Date "2019.03.17"]
[Round "4.5"]
[White "Mickevicius, Juras"]
[Black "Butvilas, Aistis"]
[Result "1/2-1/2"]
[ECO "E04"]
[WhiteElo "2273"]
[BlackElo "1983"]
[Annotator "NA"]
[PlyCount "155"]
[EventDate "2019.??.??"]
[EventCountry "LTU"]
[SourceTitle "playchess.com"]
[Source "ChessBase"]
[SourceQuality "1"]
[TimeControl "5400+30"]

1. d4 {[%emt 0:00:00]} Nf6 {[%emt 0:00:00]} 2. c4 {[%emt 0:00:00]} e6 {[%emt 0:00:00]} 3. g3 {[%emt 0:00:00]} d5 {[%emt 0:00:00]} 4. Nf3 {[%emt 0:00:00]} dxc4 {[%emt 0:00:16]} 5. Bg2 {[%emt 0:00:00]} Bd7 {[%emt 0:01:13]} 6. Ne5 {[%emt 0:01:07]} Bc6 {[%emt 0:00:11]} 7. Nxc6 {[%emt 0:03:12]} Nxc6 {[%emt 0:00:10]} 8. O-O {[%emt 0:00:11]} Qd7 {[%emt 0:03:40] E04: Open Catalan: 5 Nf3} 9. e3 {[%emt 0:00:20]} Rd8 {[%emt 0:00:40]} 10. Qa4 {[%emt 0:01:14]} Nb4 $1 {[%emt 0:02:33]} 11. Qxd7+ {[%emt 0:03:17]} Rxd7 {[%emt 0:08:41]} 12. Na3 {[%emt 0:00:16]} c5 {[%emt 0:01:05]} 13. dxc5 {[%emt 0:03:21]} Bxc5 {[%emt 0:00:45]} 14. Nxc4 {[%emt 0:00:09]} O-O {[%emt 0:03:08]} 15. Ne5 {[%emt 0:03:02]} Rc7 {[%emt 0:02:02]} 16. a3 {[%emt 0:01:30] [#]} Nbd5 $146 {[%emt 0:18:03]} 17. Rd1 {[%emt 0:00:56]} Bb6 {[%emt 0:03:44]} 18. Bd2 {[%emt 0:14:55]} Rc2 {[%emt 0:08:01]} 19. Rab1 {[%emt 0:03:22]} Rfc8 {[%emt 0:05:30]} 20. h3 {[%emt 0:03:31]} h5 {[%emt 0:08:38]} 21. Nd3 {[%emt 0:10:21]} R2c4 {[%emt 0:04:43]} 22. Rbc1 {[%emt 0:01:22]} Rxc1 {[%emt 0:04:50]} 23. Rxc1 {[%emt 0:00:02]} Rxc1+ {[%emt 0:00:09]} 24. Bxc1 {[%emt 0:00:14]} Kf8 {[%emt 0:02:58]} 25. Kf1 {[%emt 0:00:38]} g6 {[%emt 0:02:32]} 26. Ke2 {[%emt 0:00:14]} Ke8 {[%emt 0:00:36]} 27. Ne5 {[%emt 0:00:39]} Bc7 {[%emt 0:00:38]} 28. Nc4 {[%emt 0:00:13]} b5 {[%emt 0:02:47]} 29. Nd2 {[%emt 0:00:05]} e5 {[%emt 0:07:48]} 30. Kd3 {[%emt 0:01:38]} Kd7 {[%emt 0:00:37]} 31. b3 {[%emt 0:01:08]} Ke6 {[%emt 0:02:34]} 32. Kc2 {[%emt 0:07:12]} Bb6 {[%emt 0:01:40]} 33. Bf1 {[%emt 0:01:25]} Nc7 {[%emt 0:01:08]} 34. Bb2 {[%emt 0:01:01]} Nfd5 {[%emt 0:01:27]} 35. Be2 {[%emt 0:01:23]} a6 {[%emt 0:02:31]} 36. Nf3 {[%emt 0:02:06]} f6 {[%emt 0:00:09]} 37. Bd3 {[%emt 0:02:07]} Kf7 {[%emt 0:01:52]} 38. Kd2 {[%emt 0:00:23]} Ne6 {[%emt 0:00:50]} 39. g4 {[%emt 0:03:37]} hxg4 {[%emt 0:00:10]} 40. hxg4 {[%emt 0:00:03]} Nc5 {[%emt 0:00:51]} 41. Bc2 {[%emt 0:00:13]} g5 {[%emt 0:00:36]} 42. b4 {[%emt 0:00:19]} Ne6 {[%emt 0:00:31]} 43. Bb3 {[%emt 0:00:19]} Ndc7 {[%emt 0:00:22]} 44. Kd3 {[%emt 0:00:19]} Ke7 {[%emt 0:00:32]} 45. Ke4 {[%emt 0:00:29]} a5 {[%emt 0:00:34]} 46. Bc3 {[%emt 0:00:33]} a4 {[%emt 0:00:11]} 47. Ba2 {[%emt 0:00:07]} Nd8 {[%emt 0:00:49]} 48. Nd2 {[%emt 0:07:18]} Nb7 {[%emt 0:00:26]} 49. Kd3 {[%emt 0:02:15]} Nd6 {[%emt 0:00:27]} 50. Bb2 {[%emt 0:00:30]} Nce8 {[%emt 0:00:42]} 51. Bd5 {[%emt 0:05:06]} Kd7 {[%emt 0:00:34]} 52. Nf1 {[%emt 0:01:21]} Nc7 {[%emt 0:00:11]} 53. Ba2 {[%emt 0:00:06]} Nce8 {[%emt 0:00:33]} 54. Ng3 {[%emt 0:00:03]} Nc7 {[%emt 0:00:22]} 55. Nh5 {[%emt 0:00:59]} Nde8 {[%emt 0:00:34]} 56. f4 {[%emt 0:01:44]} exf4 {[%emt 0:00:31]} 57. exf4 {[%emt 0:00:08]} Ke7 {[%emt 0:00:44] [#]} 58. fxg5 $18 {[%emt 0:01:18]} fxg5 {[%emt 0:00:05]} 59. Bc1 {[%emt 0:00:09]} Ne6 {[%emt 0:00:32]} 60. Bxe6 {[%emt 0:00:11]} Kxe6 {[%emt 0:00:04]} 61. Bxg5 {[%emt 0:00:02]} Nd6 {[%emt 0:00:20]} 62. Bc1 {[%emt 0:00:31]} Nc4 {[%emt 0:00:40]} 63. Nf4+ {[%emt 0:00:51]} Kd6 {[%emt 0:01:18]} 64. Ke4 {[%emt 0:00:33]} Bd8 {[%emt 0:00:16]} 65. Nd5 {[%emt 0:00:16]} Bh4 {[%emt 0:00:29]} 66. Ne3 {[%emt 0:01:31]} Nxe3 {[%emt 0:00:41]} 67. Bxe3 {[%emt 0:00:01]} Bf6 {[%emt 0:00:12]} 68. Bd4 {[%emt 0:03:20]} Bg5 {[%emt 0:00:19]} 69. Kf5 {[%emt 0:09:13]} Bc1 {[%emt 0:00:11]} 70. Kf6 {[%emt 0:00:01]} Kd5 {[%emt 0:00:45]} 71. Be5 {[%emt 0:00:38]} Kc4 {[%emt 0:01:04]} 72. g5 {[%emt 0:00:52]} Bxg5+ {[%emt 0:00:12]} 73. Kxg5 {[%emt 0:00:02]} Kb3 {[%emt 0:00:11]} 74. Kf4 {[%emt 0:00:01]} Kxa3 {[%emt 0:00:15]} 75. Ke3 {[%emt 0:00:01]} Kxb4 {[%emt 0:00:32]} 76. Kd2 {[%emt 0:00:02]} Kb3 {[%emt 0:00:15]} 77. Kc1 {[%emt 0:00:10]} Ka2 {[%emt 0:00:41]} 78. Bd6 {[%emt 0:00:11]} 1/2-1/2

[Event "LTU-ch Men 2019"]
[Site "Vilnius"]
[Date "2019.03.17"]
[Round "4.6"]
[White "Jablokov, Dmitrij"]
[Black "Kalvaitis, Sigitas"]
[Result "0-1"]
[ECO "D73"]
[WhiteElo "1859"]
[BlackElo "2143"]
[Annotator "NA"]
[PlyCount "66"]
[EventDate "2019.??.??"]
[EventCountry "LTU"]
[SourceTitle "playchess.com"]
[Source "ChessBase"]
[SourceQuality "1"]
[TimeControl "5400+30"]

{[%evp 8,65,21,16,40,7,39,26,39,33,47,0,0,0,-2,-52,-38,-54,-42,-47,-43,32767,32767,32767,-86,-32,-83,-34,-87,-88,-94,-87,-93,-101,32767,32767,32767,32767,-110,-125,-129,-120,-128,-127,-114,-187,-181,-256,-251,-257,-369,-152,-331,-354,-201,-257,32767,32767,-306,-279]} 1. d4 {[%emt 0:00:00]} Nf6 {[%emt 0:00:00]} 2. Nf3 {[%emt 0:00:03]} g6 {[%emt 0:00:00]} 3. c4 {[%emt 0:00:06]} Bg7 {[%emt 0:00:00]} 4. g3 {[%emt 0:00:14]} d5 {[%emt 0:00:58]} 5. Bg2 {[%emt 0:00:06]} dxc4 {[%emt 0:01:07]} 6. O-O {[%emt 0:00:18]} O-O {[%emt 0:01:54]} 7. Na3 {[%emt 0:00:37]} c3 {[%emt 0:02:09]} 8. bxc3 {[%emt 0:00:20]} c5 {[%emt 0:01:43]} 9. dxc5 {[%emt 0:03:49] D77: Fianchetto Grünfeld: 6 0-0: Replies other than 6...c6} (9. Re1 Nc6 10. Bb2 cxd4 11. cxd4 Ne4 12. Qc2 Nd6 13. Ne5 Be6 14. e3 Nb4 15. Qd2 a5 16. Bc3 Nd5 {½-½ (136) Howell,D (2697)-Naiditsch,A (2736) Germany 2019}) 9... Ne4 {[%emt 0:08:30]} 10. Qxd8 {[%emt 0:00:47]} Rxd8 {[%emt 0:03:36]} 11. Bb2 $146 {[%emt 0:05:17]} ({Predecessor:} 11. Nb5 a6 12. Nfd4 Nxc5 13. Nc7 Ra7 14. Nd5 e6 15. Ne7+ Kh8 16. Ba3 {1-0 (65) Negyesy,G-Kluger,G Budapest 1952}) 11... Nc6 {[%emt 0:05:57]} 12. Ne5 {[%emt 0:06:51]} Nxc5 {[%emt 0:10:23]} 13. Nxc6 {[%emt 0:01:55]} bxc6 {[%emt 0:00:37]} 14. Bxc6 {[%emt 0:08:48]} Rb8 {[%emt 0:00:06]} 15. Bc1 {[%emt 0:00:25] [#]} Bh3 $1 {[%emt 0:15:03]} 16. Bg2 {[%emt 0:00:11]} Bxg2 {[%emt 0:00:02]} 17. Kxg2 {[%emt 0:00:09]} Ne4 {[%emt 0:01:08]} ({But not} 17... Bxc3 $6 18. Rb1 $11) 18. Rb1 {[%emt 0:02:19]} Nxc3 {[%emt 0:03:01]} 19. Rxb8 {[%emt 0:00:03]} Rxb8 {[%emt 0:00:04]} 20. Be3 {[%emt 0:00:09]} a6 {[%emt 0:02:55]} 21. Rc1 {[%emt 0:00:50]} Rb2 {[%emt 0:02:46]} 22. Kf3 f5 {[%emt 0:01:10]} ({Much weaker is} 22... Rxa2 $6 23. Nb1 $11) 23. Nc4 {[%emt 0:02:53]} Rxa2 {[%emt 0:00:19]} 24. Bd2 {[%emt 0:01:02]} Ne4 {[%emt 0:01:58]} 25. Bb4 {[%emt 0:00:29]} Ra4 {[%emt 0:02:10]} 26. Rb1 {[%emt 0:00:01]} (26. Be1 $17 {keeps fighting.}) 26... Kf7 {[%emt 0:01:16]} 27. Nb6 {[%emt 0:01:14]} (27. Ke3 $17 {was worth a try.}) 27... Ra2 {[%emt 0:00:06]} 28. Rd1 {[%emt 0:00:45]} Rb2 {[%emt 0:00:59]} 29. Ba5 {[%emt 0:00:13]} Rb5 {[%emt 0:07:49]} 30. Rd5 {[%emt 0:00:07]} Rb3+ {[%emt 0:00:40]} 31. Kg2 {[%emt 0:01:40]} (31. Rd3 $142 Rb5) 31... Ke6 {[%emt 0:00:22]} 32. Rd1 {[%emt 0:01:23]} Rb5 {[%emt 0:00:36]} 33. Nc4 $19 {[%emt 0:00:23]} Rc5 {[%emt 0:00:19]} 0-1

[Event "LTU-ch Men 2019"]
[Site "Vilnius"]
[Date "2019.03.17"]
[Round "4.7"]
[White "Juknis, Paulius"]
[Black "Vardanyan, Aras"]
[Result "1/2-1/2"]
[ECO "B51"]
[WhiteElo "2219"]
[BlackElo "1916"]
[Annotator "NA"]
[PlyCount "46"]
[EventDate "2019.??.??"]
[EventCountry "LTU"]
[SourceTitle "playchess.com"]
[Source "ChessBase"]
[SourceQuality "1"]
[TimeControl "5400+30"]

{[%evp 8,46,23,7,41,31,31,20,18,39,52,39,58,77,77,97,90,77,185,183,164,160,169,104,117,110,112,128,32767,127,126,92,147,93,147,54,70,50,76,32767,44]} 1. e4 {[%emt 0:00:00]} c5 {[%emt 0:00:00]} 2. Nf3 {[%emt 0:00:00]} d6 {[%emt 0:00:00]} 3. Bb5+ {[%emt 0:00:02]} Nd7 {[%emt 0:00:21]} 4. c3 {[%emt 0:00:39]} Ngf6 {[%emt 0:01:18]} 5. Qe2 {[%emt 0:00:11]} Qc7 {[%emt 0:00:57]} (5... a6 $5 {[%cal Ra6b5]} 6. Ba4 b5 $11 7. Bc2 Bb7 8. O-O e6 9. d4 Be7 10. Re1 O-O 11. Nbd2 Rc8 12. Nf1 Qc7 13. Bd3 cxd4 14. cxd4 e5 15. d5 Nh5 16. Ng3 Nf4 17. Bxf4 exf4 {1-0 (45) Quesada Perez,Y (2612)-Xiong,J (2675) Saint Louis 2018}) 6. O-O {[%emt 0:00:27] B51: Sicilian: Moscow Variation (3 Bb5+) without 3...Bd7} a6 {[%emt 0:01:16]} 7. Ba4 {[%emt 0:00:25]} b5 {[%emt 0:05:17]} 8. Bc2 {[%emt 0:00:05]} g6 $146 {[%emt 0:00:17]} ({Predecessor:} 8... Bb7 9. d4 e5 10. a4 cxd4 11. cxd4 Be7 12. axb5 axb5 13. Na3 b4 14. Nb5 Qb8 {1-0 (35) Licznerski,L (2277)-Musialkiewicz,J (2244) Pokrzywna 2018}) 9. d4 {[%emt 0:02:37]} e5 {[%emt 0:00:39]} 10. a4 {[%emt 0:05:58]} b4 {[%emt 0:04:31]} 11. dxe5 {[%emt 0:05:21]} dxe5 {[%emt 0:00:58]} 12. a5 {[%emt 0:10:23]} Nb8 {[%emt 0:06:26]} (12... Bg7 $16) 13. Nbd2 {[%emt 0:03:03]} bxc3 {[%emt 0:02:00]} 14. bxc3 {[%emt 0:00:07]} Bg7 {[%emt 0:00:07]} 15. Ba4+ {[%emt 0:04:22]} Bd7 {[%emt 0:00:34]} 16. Bxd7+ {[%emt 0:00:21]} Nfxd7 {[%emt 0:01:06]} 17. Nc4 {[%emt 0:01:57]} O-O {[%emt 0:00:53]} 18. Rd1 {[%emt 0:05:35]} Nc6 {[%emt 0:02:14]} 19. Be3 {[%emt 0:12:01]} Rfd8 {[%emt 0:05:08]} ({Better is} 19... Na7) 20. Rd5 {[%emt 0:09:13]} ({Better is} 20. h4) 20... Bf8 {[%emt 0:06:35] [#]} 21. Rad1 {[%emt 0:05:47]} (21. Bg5 $1 $16) 21... Nf6 {[%emt 0:02:19]} 22. Rxd8 {[%emt 0:00:14]} Rxd8 {[%emt 0:00:07]} 23. Rxd8 {[%emt 0:02:22]} Qxd8 $14 {[%emt 0:02:12]} 1/2-1/2

[Event "LTU-ch Men 2019"]
[Site "Vilnius"]
[Date "2019.03.17"]
[Round "4.8"]
[White "Stauskas, Lukas"]
[Black "Ketlerius, Arijus"]
[Result "1/2-1/2"]
[ECO "A61"]
[WhiteElo "2357"]
[BlackElo "1841"]
[Annotator "NA"]
[PlyCount "66"]
[EventDate "2019.??.??"]
[EventCountry "LTU"]
[SourceTitle "playchess.com"]
[Source "ChessBase"]
[SourceQuality "1"]
[TimeControl "5400+30"]

{[%evp 12,62,77,44,42,20,24,31,11,18,39,34,14,3,94,77,87,48,75,49,58,91,69,59,97,72,69,68,63,5,37,35,30,24,22,23,39,0,0,-22,-17,-13,32767,-9,32767,-17,0,32767,0,0,0,0,0]} 1. d4 {[%emt 0:00:00]} Nf6 {[%emt 0:00:00]} 2. c4 {[%emt 0:00:00]} c5 {[%emt 0:00:00]} 3. d5 {[%emt 0:00:00]} e6 {[%emt 0:00:00]} 4. Nc3 {[%emt 0:00:00]} exd5 {[%emt 0:00:00]} 5. cxd5 {[%emt 0:00:00]} d6 {[%emt 0:00:00]} 6. Nf3 {[%emt 0:00:00]} g6 {[%emt 0:00:00]} 7. Bg5 {[%emt 0:00:03]} Bg7 {[%emt 0:00:35]} 8. Nd2 {[%emt 0:00:07]} h6 {[%emt 0:00:16]} 9. Bh4 {[%emt 0:00:05]} g5 {[%emt 0:00:08]} 10. Bg3 {[%emt 0:00:07]} Nh5 {[%emt 0:00:07]} 11. Nc4 {[%emt 0:01:27] A61: Modern Benoni: Nf3 without early e4} Nxg3 {[%emt 0:00:06]} 12. hxg3 {[%emt 0:00:05]} a6 {[%emt 0:00:41]} (12... O-O $11 {keeps the balance.}) 13. a4 {[%emt 0:01:32]} O-O {[%emt 0:02:23]} 14. e3 {[%emt 0:01:47]} Qc7 {[%emt 0:10:12]} (14... Qe7 $11) (14... b6 15. Bd3 f5 16. Qh5 Nd7 17. f4 {1-0 (94) Aleksandrov,A (2559)-Nagy,G (2446) Zalakaros 2017}) 15. a5 $146 {[%emt 0:15:23]} ({Predecessor:} 15. Bd3 Nd7 16. Ne4 b5 17. axb5 axb5 18. Rxa8 bxc4 {½-½ (32) Grivas,E (2375)-Toshkov,T (2440) Athens 1984}) 15... Nd7 {[%emt 0:02:01]} 16. Ne4 {[%emt 0:12:37]} b5 {[%emt 0:03:27]} 17. axb6 $1 {[%emt 0:06:26]} Nxb6 {[%emt 0:00:58]} 18. Nexd6 {[%emt 0:00:06]} Rd8 {[%emt 0:03:31]} 19. Nxc8 {[%emt 0:00:19]} Raxc8 {[%emt 0:00:31]} 20. e4 {[%emt 0:03:35]} ({Much worse is} 20. Rxa6 Nxd5 21. Qc1 Qb7 $11) ({White should play} 20. Qc2 $16) 20... Nxc4 {[%emt 0:09:39]} 21. Bxc4 {[%emt 0:00:07]} Qe5 {[%emt 0:00:07]} 22. Qc2 {[%emt 0:16:25]} ({Not} 22. Bxa6 $2 Qxe4+ {[%mdl 64] Double Attack} 23. Kf1 Rb8 $19) 22... Re8 {[%emt 0:03:41]} 23. O-O {[%emt 0:07:23]} ({But not} 23. Rxa6 Qxe4+ 24. Kd1 Qxg2 $15) 23... Qxe4 {[%emt 0:01:44]} 24. Bd3 {[%emt 0:02:18]} Qxd5 {[%emt 0:07:23]} 25. Rxa6 {[%emt 0:01:34]} c4 {[%emt 0:03:59]} 26. Bh7+ {[%emt 0:01:52]} Kh8 {[%emt 0:03:03]} 27. Bf5 {[%emt 0:00:50]} Rb8 {[%emt 0:01:40]} 28. Rd1 {[%emt 0:08:55]} Qe5 {[%emt 0:16:50]} 29. g4 {[%emt 0:04:17]} Rxb2 {[%emt 0:01:56]} 30. Qxc4 {[%emt 0:00:08]} Qe1+ {[%emt 0:04:08]} 31. Rxe1 {[%emt 0:00:07]} Rxe1+ $11 {[%emt 0:00:04]} 32. Qf1 {[%emt 0:00:27]} Rxf1+ {[%emt 0:08:40]} 33. Kxf1 {[%emt 0:00:06]} Bd4 {[%emt 0:01:19]} 1/2-1/2

[Event "LTU-ch Men 2019"]
[Site "Vilnius"]
[Date "2019.03.17"]
[Round "4.9"]
[White "Zickus, Simonas"]
[Black "Mickus, Benas"]
[Result "1-0"]
[ECO "A06"]
[WhiteElo "2330"]
[BlackElo "1835"]
[Annotator "NA"]
[PlyCount "69"]
[EventDate "2019.??.??"]
[EventCountry "LTU"]
[SourceTitle "playchess.com"]
[Source "ChessBase"]
[SourceQuality "1"]
[TimeControl "5400+30"]

{[%evp 8,69,23,20,6,12,20,6,6,9,8,11,6,0,0,6,-9,-8,3,0,0,0,0,0,0,-6,9,-14,44,32767,32767,35,26,9,43,25,56,25,32767,32767,83,32767,32767,32767,32767,32767,32767,32767,131,5,32767,32767,0,0,89,90,191,32767,5389,975,29996,32767,29997,29998]} 1. Nf3 {[%emt 0:00:00]} d5 {[%emt 0:00:00]} 2. g3 {[%emt 0:00:00]} Nf6 {[%emt 0:00:00]} 3. Bg2 {[%emt 0:00:00]} e6 {[%emt 0:00:01]} 4. O-O {[%emt 0:00:00]} c5 {[%emt 0:00:18]} 5. d4 {[%emt 0:00:00]} cxd4 {[%emt 0:00:52]} 6. Nxd4 {[%emt 0:00:00]} e5 {[%emt 0:00:25]} 7. Nb3 {[%emt 0:00:11]} Be6 {[%emt 0:02:14]} 8. Nc3 {[%emt 0:03:24]} Be7 {[%emt 0:13:00] LiveBook: 54 Games D02: 1 d4 d5 2 Nf3 sidelines, including 2...Nf6 3 g3 and 2...Nf6 3 Bf4} 9. Bg5 {[%emt 0:01:45]} (9. f4 exf4 10. gxf4 g6 11. Kh1 Nc6 12. Be3 O-O 13. Nd4 Bg4 14. f5 Re8 15. h3 Bh5 16. Qe1 Nxd4 17. Bxd4 {1-0 (28) Edouard,R (2638)-Cornette,M (2593) Nimes 2018}) 9... Nbd7 {[%emt 0:00:54]} 10. e4 {[%emt 0:10:27]} dxe4 {[%emt 0:12:37]} 11. Bxf6 {[%emt 0:01:04]} Nxf6 {[%emt 0:01:01]} 12. Nxe4 {[%emt 0:00:04]} Nxe4 {[%emt 0:01:14]} 13. Bxe4 {[%emt 0:00:02]} Qc7 {[%emt 0:01:09]} 14. Qf3 {[%emt 0:04:30]} Rb8 {[%emt 0:04:56]} 15. Rfd1 $146 {[%emt 0:22:35]} ({Predecessor:} 15. c3 O-O 16. Rfe1 {½-½ (37) Borges,L (1655)-Aguero Centurio,A (2064) Caioba 2018}) 15... O-O {[%emt 0:04:37]} 16. c3 {[%emt 0:01:13]} b5 {[%emt 0:18:23]} 17. Bf5 {[%emt 0:05:19]} Rb6 {[%emt 0:05:10]} 18. Bxe6 {[%emt 0:06:33]} Rxe6 {[%emt 0:00:16]} 19. Rd5 {[%emt 0:00:06]} a6 {[%emt 0:08:53]} 20. Rad1 {[%emt 0:00:10]} Qc6 {[%emt 0:01:14]} 21. Qe3 {[%emt 0:04:07]} f6 {[%emt 0:05:38]} 22. Qd3 {[%emt 0:06:12]} Re8 {[%emt 0:01:33]} 23. Rd7 {[%emt 0:00:43]} Bc5 {[%emt 0:02:20]} (23... Bf8 $11) 24. Nxc5 {[%emt 0:09:38]} Qxc5 {[%emt 0:00:06]} 25. Qe4 {[%emt 0:00:10]} f5 {[%emt 0:03:38]} 26. Qxf5 {[%emt 0:11:05]} Rf6 {[%emt 0:00:09]} 27. Qc2 {[%emt 0:00:03]} e4 {[%emt 0:02:37]} 28. R1d2 {[%emt 0:00:01]} (28. Rd8 $16 Qf8 29. Rxe8 Qxe8 30. Re1) 28... e3 {[%emt 0:03:47]} 29. Rd8 {[%emt 0:06:38]} exf2+ {[%emt 0:04:58]} 30. Kf1 {[%emt 0:00:01]} Rxd8 {[%emt 0:01:21]} (30... Rff8 $11 31. Rxe8 Rxe8) 31. Rxd8+ {[%emt 0:00:02]} Kf7 {[%emt 0:00:08]} (31... Rf8 $16 32. Rxf8+ Qxf8) 32. Qe4 {[%emt 0:02:50]} g6 $2 {[%emt 0:01:28]} (32... Qe7 $16 33. Qxe7+ Kxe7) 33. Qb7+ {[%emt 0:02:32]} (33. Qe8+ $142 Kg7 34. Qh8+ Kh6 35. Qxf6 {[%mdl 64] Double Attack}) 33... Ke6 {[%emt 0:00:16]} 34. Qd7+ {[%emt 0:01:01]} Ke5 {[%emt 0:00:15]} 35. Re8+ {[%emt 0:00:06] Kd5} 1-0